[Event "Oceania Zonal Women 2023"]
[Site "Melbourne"]
[Date "2023.01.24"]
[Round "2.1"]
[White "Ryjanova, Julia"]
[Black "Gratchev, Ekaterina"]
[Result "1-0"]
[ECO "A58"]
[WhiteElo "2288"]
[BlackElo "1628"]
[Annotator "TA"]
[PlyCount "109"]
[EventDate "2023.01.09"]
[EventType "swiss"]
[EventCountry "AUS"]
[SourceTitle "playchess.com"]
[Source "ChessBase"]
[SourceQuality "1"]
[TimeControl "5400+30"]

{[%evp 9,109,26,69,51,51,51,47,31,42,32,32,37,35,22,48,27,35,25,91,72,96,77,106,106,136,122,150,95,253,256,425,427,432,384,379,361,376,253,223,222,220,218,398,324,332,333,336,331,325,291,332,311,320,229,277,270,443,443,443,434,434,434,434,419,416,407,419,412,412,308,910,896,896,896,903,874,860,699,828,795,29973,29974,29974,29975,29974,29975,29979,29980,29980,29981,29981,29981,29982,29983,29983,29984,29985,29986,29992,29985,29990,29985]} 1. d4 {[%emt 0:03:47]} Nf6 {[%emt 0:00:55]} 2. c4 {[%emt 0:00:34][%cal Bc2c4,Bc4b5,Bb5a6][%mdl 32]} c5 {[%emt 0:00:03]} 3. d5 {[%emt 0:00:24]} b5 {[%emt 0:00:06]} 4. cxb5 {[%emt 0:00:17]} a6 {[%emt 0:00:04]} 5. bxa6 {[%emt 0:00:17]} g6 {[%emt 0:00:06][%cal Of8g7]} 6. Nc3 {[%emt 0:00:34] A58: Benko/Volga Gambit: Lines with 5 bxa6.} Bg7 {[%emt 0:00:04][%cal Oe8g8]} 7. e4 {[%emt 0:25:40] Hoping for e5.} O-O {[%emt 0:00:08][%cal Oe7e6]} 8. Nf3 {[%emt 0:03:11] White is slightly better.} Qa5 {[%emt 0:00:14]} 9. Nd2 {[%emt 0:06:53]} Bxa6 {[%emt 0:05:19]} 10. Be2 {[%emt 0:02:36]} d6 {[%emt 0:02:24]} 11. O-O {[%emt 0:05:11]} Nbd7 {[%emt 0:02:18]} 12. a4 {[%emt 0:02:25]} Rfb8 {[%emt 0:05:08]} 13. Ra3 {[%emt 0:04:41]} Ne8 {[%emt 0:04:36]} (13... Bxe2 $11 {remains equal.} 14. Qxe2 Nb6) 14. Nb5 {[%emt 0:02:38]} Qd8 {[%emt 0:05:54]} 15. b3 {[%emt 0:12:24] [#]} Rb6 $146 {[%emt 0:14:43]} ({Predecessor:} 15... Nc7 16. Nxc7 Qxc7 17. Bxa6 Rxa6 18. Nc4 Ne5 19. Qc2 Nxc4 20. Qxc4 Rab6 21. a5 Rb4 22. Qc2 Qb7 23. Bd2 Rxb3 24. a6 Qb5 25. Rxb3 Qxb3 26. a7 {1-0 Pubantz,J (2295)-Weishaeutel,M (2222) GER-chT Lands U20 2020 (4.2)}) 16. Bc4 {[%emt 0:04:13]} Rab8 {[%emt 0:03:47]} 17. Na7 {[%emt 0:05:16]} Bb7 {[%emt 0:05:35] Dodges Nc6} 18. Bb5 {[%emt 0:01:49]} (18. a5 $142 Rb4 19. Nf3) 18... Nc7 $2 {[%emt 0:09:32] [#] A mistake that costs the game.} (18... Ra8 $16 {keeps fighting.}) 19. Nc4 $1 $18 {[%emt 0:01:28] Bxd7 would be deadly.} ({Not} 19. Nc6 Bxc6 20. Bxc6 (20. dxc6 Ne5 $11) 20... Ra6 $16) 19... Nxb5 {[%emt 0:06:41]} (19... Ra6 {is a better defense.}) 20. axb5 {[%emt 0:00:26]} ({Less strong is} 20. Nxb5 Ra6 $16) 20... Nf6 {[%emt 0:07:11]} 21. f3 {[%emt 0:02:52]} e6 {[%emt 0:04:26]} 22. dxe6 {[%emt 0:02:51]} fxe6 {[%emt 0:00:15]} 23. e5 {[%emt 0:03:09]} Nd5 {[%emt 0:00:44]} 24. exd6 {[%emt 0:01:59]} ({Resist} 24. Nxd6 Rxd6 25. exd6 Qxd6) 24... Bd4+ {[%emt 0:01:53]} 25. Kh1 {[%emt 0:00:07]} Ra8 $2 {[%emt 0:02:48]} (25... Rxd6 {was necessary.} 26. Nxd6 Qxd6) 26. Qe2 {[%emt 0:01:48]} Rxd6 {[%emt 0:01:21]} 27. Nxd6 {[%emt 0:00:16]} Qxd6 {[%emt 0:00:10] [#]} 28. Nc6 $1 {[%emt 0:01:30] Against Rb8} Bxc6 {[%emt 0:01:36]} 29. bxc6 {[%emt 0:00:06]} Rxa3 {[%emt 0:01:49]} 30. Bxa3 {[%emt 0:00:07]} Qxc6 {[%emt 0:00:46]} 31. Bc1 {[%emt 0:01:49]} Nc3 {[%emt 0:02:13]} 32. Qc4 {[%emt 0:00:25] Strongly threatening Bb2.} Kg7 $2 {[%emt 0:00:27]} (32... Nd5 33. Re1 Kf7) 33. Bb2 {[%emt 0:00:48]} Qd5 {[%emt 0:01:41]} 34. Bxc3 {[%emt 0:01:12]} Qxc4 {[%emt 0:00:19]} 35. bxc4 {[%emt 0:00:08] White threatens Bxd4+ and mate.} Bxc3 {[%emt 0:00:15][%mdl 4096] Endgame KR-KB} 36. Rd1 {[%emt 0:00:20]} Kf6 {[%emt 0:01:35]} 37. g3 {[%emt 0:00:20]} h5 {[%emt 0:02:14]} 38. Kg2 {[%emt 0:00:18]} g5 {[%emt 0:01:34]} 39. Rd7 {[%emt 0:00:49]} e5 $2 {[%emt 0:02:54]} (39... Be5 40. Kf2 Bd4+ 41. Ke2 Bg1) 40. Rh7 {[%emt 0:01:30]} Kg6 {[%emt 0:00:19]} 41. Rc7 {[%emt 0:00:18]} Bd4 {[%emt 0:00:44]} 42. Rc6+ {[%emt 0:01:55]} Kg7 {[%emt 0:01:25]} 43. h3 {[%emt 0:00:26]} Be3 {[%emt 0:01:04]} 44. Kf1 {[%emt 0:00:09]} g4 {[%emt 0:04:21]} 45. hxg4 {[%emt 0:00:23] White mates.} hxg4 {[%emt 0:00:06]} 46. Ke2 {[%emt 0:00:08]} Bd4 {[%emt 0:00:27]} 47. fxg4 {[%emt 0:00:17][%cal Bf3g4,Bg4g5,Bg5g6][%mdl 32]} Kf7 {[%emt 0:00:42]} 48. Kf3 {[%emt 0:00:11]} Ke7 {[%emt 0:00:28]} 49. Ke4 {[%emt 0:00:08]} Kf7 {[%emt 0:00:23]} 50. Kf5 {[%emt 0:00:28]} Kg7 {[%emt 0:00:14]} 51. g5 {[%emt 0:00:31]} Kf7 {[%emt 0:00:16]} 52. Rc7+ {[%emt 0:00:14]} Kf8 {[%emt 0:00:09]} 53. g6 {[%emt 0:00:42]} Kg8 {[%emt 0:00:17]} 54. Re7 {[%emt 0:01:24]} Kf8 {[%emt 0:00:09]} 55. Rxe5 {[%emt 0:00:33] Weighted Error Value: White=0.16 (very precise) /Black=0.41} 1-0

[Event "Oceania Zonal Women 2023"]
[Site "Melbourne"]
[Date "2023.01.24"]
[Round "2.2"]
[White "Punsalan, Vyanla M"]
[Black "Shen, Fiona"]
[Result "1-0"]
[ECO "B22"]
[WhiteElo "1989"]
[BlackElo "1625"]
[Annotator "TA"]
[PlyCount "79"]
[EventDate "2023.01.09"]
[EventType "swiss"]
[EventCountry "AUS"]
[SourceTitle "playchess.com"]
[Source "ChessBase"]
[SourceQuality "1"]
[TimeControl "5400+30"]

{[%evp 14,79,0,0,0,0,8,0,0,-3,0,0,20,0,0,0,0,0,0,0,0,0,0,0,171,93,929,924,1722,1722,1721,1690,1633,1635,29986,29987,29987,29988,29988,29989,29990,29991,29991,29988,29988,29989,29989,29990,29990,29991,29996,29990,29990,29991,29991,29992,29992,29993,29995,29995,29995,29996,29996,29997,29997,29998,29998,29999]} 1. e4 {[%emt 0:00:08]} c5 {[%emt 0:14:09]} 2. c3 {[%emt 0:00:43]} d5 {[%emt 0:00:05]} 3. exd5 {[%emt 0:00:28]} Qxd5 {[%emt 0:00:06]} 4. d4 {[%emt 0:00:25]} Nf6 {[%emt 0:00:09]} 5. Nf3 {[%emt 0:00:32]} e6 {[%emt 0:00:06]} 6. Be2 {[%emt 0:02:06]} Be7 {[%emt 0:00:24]} 7. O-O {[%emt 0:01:38]} O-O {[%emt 0:00:20]} 8. Ne5 {[%emt 0:12:36]} Rd8 {[%emt 0:17:37][%cal Rc5d4] B22: Sicilian: 2 c3.} 9. Bf3 {[%emt 0:13:21]} Qd6 {[%emt 0:00:19][%cal Rc5d4]} 10. Na3 {[%emt 0:01:21]} cxd4 {[%emt 0:09:05] The position is equal.} 11. cxd4 {[%emt 0:00:23]} Nd5 {[%emt 0:06:32] [#]} 12. Bh5 $146 {[%emt 0:10:18] Threatens to win with Nac4.} ({Predecessor:} 12. Nb5 Qb6 13. a4 Bd7 14. Nc3 Bc6 15. a5 Qc7 16. Nxd5 Bxd5 17. Bxd5 Rxd5 18. Qf3 {½-½ Cemborain Oricain,A (1927)-Huarte Zozaya,A (1789) Navarra-ch Pamplona 2017 (3)}) 12... Rf8 {[%emt 0:05:03]} 13. Bxf7+ {[%emt 0:03:09][%mdl 64] Decoy} Rxf7 {[%emt 0:00:52]} 14. Nxf7 {[%emt 0:00:22]} Kxf7 {[%emt 0:01:08]} 15. Qh5+ {[%emt 0:02:14]} Kf8 {[%emt 0:02:03]} 16. Nc4 {[%emt 0:05:03][%cal Ba3c4,Bc4e5,Be5g6][%mdl 32]} Qd8 $1 {[%emt 0:03:19] ...Kg8 would be deadly.} 17. Qxh7 {[%emt 0:05:39]} ({Much weaker is} 17. Ne5 Kg8 $15) 17... Nc6 $1 {[%emt 0:04:55]} 18. Ne5 {[%emt 0:08:04][%cal Rh7h8]} Bf6 $2 {[%emt 0:11:36] [#]} (18... Nxe5 $11 19. dxe5 Kf7) 19. Re1 $40 {[%emt 0:08:14][%mdl 128] White is out for blood.} (19. Rd1 $1 $18) 19... Nxd4 $2 {[%emt 0:07:21][%mdl 8192] [#] This costs Black the game.} (19... Bxe5 $16 20. dxe5 Kf7) 20. Bg5 $1 $18 {[%emt 0:02:36][%mdl 512]} Nf5 {[%emt 0:03:27]} (20... Qe8 21. Qh8+) 21. Qh8+ {[%emt 0:00:52]} Ke7 {[%emt 0:00:17]} 22. Bxf6+ {[%emt 0:10:37]} Nxf6 {[%emt 0:02:23]} 23. Ng6+ {[%emt 0:00:14]} Kd7 {[%emt 0:00:31]} 24. Rad1+ {[%emt 0:00:14][%mdl 64] Skewer. White mates.} Nd5 {[%emt 0:00:12] [#]} 25. Rxd5+ $1 {[%emt 0:00:15][%mdl 512]} exd5 {[%emt 0:00:23]} 26. Ne5+ {[%emt 0:00:13]} Kc7 {[%emt 0:10:36]} 27. Rc1+ {[%emt 0:00:30][%cal Be1c1,Bc1c7,Bc7f7][%mdl 32]} Kd6 {[%emt 0:00:29]} 28. Nf7+ {[%emt 0:00:50]} Ke7 {[%emt 0:00:32]} 29. Qxd8+ {[%emt 0:02:10]} Kxf7 {[%emt 0:00:10]} 30. Rc7+ {[%emt 0:01:26]} Kg6 {[%emt 0:00:27]} 31. g4 {[%emt 0:01:31]} Nd4 {[%emt 0:00:22]} 32. Qf8 {[%emt 0:01:27][%csl Gc7][%cal Rf8g7]} Bd7 {[%emt 0:01:00]} 33. Qxa8 {[%emt 0:00:21]} Bxg4 {[%emt 0:00:19]} 34. Qe8+ {[%emt 0:00:50]} Kf5 {[%emt 0:00:37]} 35. Rf7+ {[%emt 0:00:39]} Kg5 {[%emt 0:00:11]} 36. Rxg7+ {[%emt 0:00:49]} Kf4 {[%emt 0:00:18]} 37. Qe3+ {[%emt 0:00:39]} Kf5 {[%emt 0:00:17]} 38. Rg5+ {[%emt 0:00:11]} Kf6 {[%emt 0:00:05]} 39. Qe5+ {[%emt 0:00:07]} Kf7 {[%emt 0:00:02]} 40. Rg7+ {[%emt 0:00:10] Magnificent play by Punsalan!   Weighted Error Value: White=0.05 (flawless) /Black=0.34} 1-0

[Event "Oceania Zonal Women 2023"]
[Site "Melbourne"]
[Date "2023.01.24"]
[Round "2.3"]
[White "Van Sebille, Sulia"]
[Black "Zhang, Jasmine Haomo"]
[Result "0-1"]
[ECO "B51"]
[WhiteElo "1585"]
[BlackElo "1949"]
[Annotator "TA"]
[PlyCount "80"]
[EventDate "2023.01.09"]
[EventType "swiss"]
[EventCountry "AUS"]
[SourceTitle "playchess.com"]
[Source "ChessBase"]
[SourceQuality "1"]
[TimeControl "5400+30"]

{[%evp 9,80,17,9,9,27,22,50,30,24,17,13,13,26,15,11,0,0,0,0,-17,20,18,10,0,0,0,76,82,81,83,76,46,44,38,72,0,0,0,0,0,0,0,0,-105,-114,-132,-119,-115,-124,-262,-252,-408,-402,-649,-632,-1359,-1254,-5385,-5277,-5480,-5050,-4602,-2493,-29979,-29980,-29980,-29981,-29982,-29983,-29983,-29984,-29984,-29984]} 1. e4 {[%emt 0:00:06]} c5 {[%emt 0:00:07]} 2. Nf3 {[%emt 0:00:08]} d6 {[%emt 0:00:05]} 3. Bb5+ {[%emt 0:00:12]} Nd7 {[%emt 0:00:08]} 4. O-O {[%emt 0:00:52]} a6 {[%emt 0:00:12]} 5. Bd3 {[%emt 0:03:46]} Ngf6 {[%emt 0:00:35]} 6. c3 {[%emt 0:01:19] B51: Sicilian: Moscow Variation (3 Bb5+) without 3...Bd7.} b5 {[%emt 0:02:29]} 7. Bc2 {[%emt 0:02:48]} c4 {[%emt 0:01:42]} 8. d4 {[%emt 0:06:57] e5 would be deadly. White is slightly better.} cxd3 {[%emt 0:00:07]} 9. Qxd3 {[%emt 0:01:49]} Bb7 {[%emt 0:01:26]} 10. Qe2 {[%emt 0:01:00]} e6 {[%emt 0:02:12] [#]} 11. Bg5 $146 {[%emt 0:02:59]} ({Predecessor:} 11. Rd1 Be7 12. Nbd2 Qc7 13. Nf1 O-O 14. Ng3 Rfd8 15. a4 bxa4 16. Rxa4 Nc5 17. Ra1 {1-0 Zhou,L (2018)-Garcia Prada,A (1940) Collado Villalba op 38th 2021 (9)}) 11... Be7 {[%emt 0:00:42]} 12. Nbd2 {[%emt 0:01:53]} Qc7 {[%emt 0:04:35]} 13. Rfc1 {[%emt 0:09:18]} O-O {[%emt 0:04:31]} 14. h3 {[%emt 0:03:07]} Rac8 {[%emt 0:05:06]} 15. a4 {[%emt 0:01:50]} bxa4 {[%emt 0:00:45]} 16. Bxa4 {[%emt 0:00:26]} Nc5 {[%emt 0:00:14]} 17. Bc2 {[%emt 0:01:42]} d5 {[%emt 0:10:46]} (17... h6 $11 {keeps the balance.} 18. Bxf6 Bxf6) 18. e5 $16 {[%emt 0:04:08]} Nfe4 {[%emt 0:00:29]} 19. Bxe7 {[%emt 0:00:48]} Qxe7 {[%emt 0:00:29]} 20. Nxe4 {[%emt 0:01:03]} dxe4 {[%emt 0:00:30]} 21. Nd2 {[%emt 0:02:53][%cal Rd2e4]} Rfd8 {[%emt 0:08:47] [#]} 22. Nxe4 {[%emt 0:02:18]} (22. Rd1 $1 $16) 22... Bxe4 $11 {[%emt 0:01:25]} 23. Bxe4 {[%emt 0:01:53]} Nb3 $1 {[%emt 0:00:16][%csl LRa1,LRc1]} 24. Bxh7+ $1 {[%emt 0:05:34][%mdl 64] Decoy} Kf8 $1 {[%emt 0:00:05] aiming for ...g6.} 25. Bc2 {[%emt 0:00:58] Wards off g6} Nxc1 {[%emt 0:00:17]} 26. Rxc1 {[%emt 0:00:58] [#]} (26. Qh5 $1 $11 Qb7 27. Qh8+ Ke7 28. Qh4+ Kf8 29. Qh8+ Ke7 30. Qh4+ Kf8 31. Qh8+) 26... Qg5 $1 $17 {[%emt 0:09:20]} 27. Ra1 {[%emt 0:05:43] [#]} a5 $1 {[%emt 0:02:56][%mdl 1536] Black has strong compensation.} 28. Qe4 {[%emt 0:01:16]} (28. Rxa5 $2 {perishes.} Qc1+ 29. Kh2 Qf4+ 30. g3 Qd2 31. Qxd2 Rxd2 $19) (28. Bd3 Rc5) 28... Rd5 {[%emt 0:03:14][%cal Bd8d5,Bd5d2,Bd2b2][%mdl 32]} 29. f4 {[%emt 0:01:36] White does not recover from this.} (29. Re1 $17 {was worth a try.}) 29... Qg3 $19 {[%emt 0:00:31]} 30. Re1 $2 {[%emt 0:00:32]} (30. Qf3 Qxf3 31. gxf3) 30... Rd2 {[%emt 0:01:39]} 31. Rf1 {[%emt 0:01:32] Prevents Qf2+.} (31. Re2 $142 Rxe2 32. Qxe2 Qxf4 33. Qd1) 31... g6 {[%emt 0:03:48][%cal Oc8c4] And now ...Rc4! would win.} 32. Bb1 {[%emt 0:05:11]} Rxb2 {[%emt 0:05:22]} 33. c4 {[%emt 0:02:23] [#]} Rxc4 $3 {[%emt 0:01:30][%mdl 576] Deflection} 34. Qf3 {[%emt 0:01:25]} (34. Qa8+ Kg7) 34... Qxf3 {[%emt 0:00:14]} 35. gxf3 {[%emt 0:00:08][%mdl 4096] Endgame KRR-KRB} a4 {[%emt 0:00:19][%cal Ba5a4,Ba4a3,Ba3a2][%mdl 32]} 36. Bd3 {[%emt 0:00:22]} Rc3 {[%emt 0:00:36] Black mates.} 37. Be4 {[%emt 0:00:10]} a3 {[%emt 0:00:17]} 38. Ra1 {[%emt 0:00:10]} a2 {[%emt 0:00:13]} 39. Kf1 {[%emt 0:00:14]} Rcb3 {[%emt 0:00:17]} 40. Kg1 {[%emt 0:00:13]} Rb1+ {[%emt 0:00:17] Artfully played by Zhang.   Weighted Error Value: White=0.89/Black=0.06 (flawless)} 0-1

[Event "Oceania Zonal Women 2023"]
[Site "Melbourne"]
[Date "2023.01.24"]
[Round "2.4"]
[White "Vincent Alaina"]
[Black "Anton, Sarah"]
[Result "1-0"]
[ECO "B29"]
[WhiteElo "1897"]
[BlackElo "1578"]
[Annotator "NA COMBH"]
[PlyCount "148"]
[EventDate "2023.01.09"]
[EventType "swiss"]
[EventCountry "AUS"]
[SourceTitle "playchess.com"]
[Source "ChessBase"]
[SourceQuality "1"]
[TimeControl "5400+30"]

1. e4 {[%emt 0:00:04]} c5 {[%emt 0:11:48]} 2. Nf3 {[%emt 0:00:18]} Nf6 {[%emt 0:00:12]} 3. Nc3 {[%emt 0:00:12]} d5 {[%emt 0:00:13]} 4. Bb5+ {[%emt 0:04:54]} Nc6 {[%emt 0:01:29]} 5. e5 {[%emt 0:06:20]} Nd7 {[%emt 0:04:38]} 6. Nxd5 {[%emt 0:05:18]} Ndxe5 {[%emt 0:00:09]} 7. Ne3 {[%emt 0:00:46]} Bd7 {[%emt 0:02:26]} 8. Nxe5 {[%emt 0:00:31]} Nxe5 {[%emt 0:00:19]} 9. Bxd7+ {[%emt 0:01:03]} Qxd7 {[%emt 0:02:45]} 10. b3 {[%emt 0:00:34]} e6 {[%emt 0:03:55]} 11. Bb2 {[%emt 0:00:22]} Nc6 {[%emt 0:01:03]} 12. O-O {[%emt 0:04:23]} h5 {[%emt 0:03:03]} 13. Re1 {[%emt 0:00:31]} O-O-O {[%emt 0:03:16]} 14. Qf3 {[%emt 0:01:13]} Nd4 {[%emt 0:02:21]} 15. Bxd4 {[%emt 0:00:14]} cxd4 {[%emt 0:00:42]} 16. Nc4 {[%emt 0:00:28]} f6 {[%emt 0:00:28]} 17. a4 {[%emt 0:01:04]} e5 {[%emt 0:10:18]} 18. a5 {[%emt 0:00:17]} Qd5 {[%emt 0:01:15]} 19. Qf5+ {[%emt 0:00:39]} Qd7 {[%emt 0:00:18]} 20. Qd3 {[%emt 0:00:22]} Bc5 {[%emt 0:04:33]} 21. b4 {[%emt 0:01:11]} Bd6 {[%emt 0:03:58]} 22. a6 {[%emt 0:01:23]} b6 {[%emt 0:04:05]} 23. c3 {[%emt 0:07:13]} dxc3 {[%emt 0:03:07]} 24. Qxc3 {[%emt 0:00:14]} Kb8 {[%emt 0:00:24]} 25. Qf3 {[%emt 0:00:45]} Bxb4 {[%emt 0:11:08]} 26. Nxb6 {[%emt 0:03:58]} axb6 {[%emt 0:00:47]} 27. a7+ {[%emt 0:00:14]} Qxa7 {[%emt 0:00:04]} 28. Rxa7 {[%emt 0:00:12]} Kxa7 {[%emt 0:00:04]} 29. Ra1+ {[%emt 0:00:18]} Ba5 {[%emt 0:00:06]} 30. Qc6 {[%emt 0:00:08]} Rb8 {[%emt 0:02:59]} 31. g3 {[%emt 0:00:28]} h4 {[%emt 0:01:29]} 32. g4 {[%emt 0:00:42]} Rb7 {[%emt 0:02:32]} 33. h3 {[%emt 0:00:16]} Rd8 {[%emt 0:03:04]} 34. Qb5 {[%emt 0:00:28]} Rdd7 {[%emt 0:06:33]} 35. g5 {[%emt 0:01:03]} Kb8 {[%emt 0:01:43]} 36. d3 {[%emt 0:00:27]} Bc3 {[%emt 0:03:40]} 37. Ra6 {[%emt 0:00:17]} Bd4 {[%emt 0:00:00]} 38. gxf6 {[%emt 0:00:14]} gxf6 {[%emt 0:00:16]} 39. Qc6 {[%emt 0:00:27]} f5 {[%emt 0:01:17]} 40. Qe6 {[%emt 0:00:24]} f4 {[%emt 0:03:17]} 41. Qe8+ {[%emt 0:00:31]} Kc7 {[%emt 0:00:09]} 42. Qh5 {[%emt 0:00:10]} Rg7+ {[%emt 0:02:51]} 43. Kf1 {[%emt 0:00:12]} Kc6 {[%emt 0:00:48]} 44. Qxh4 {[%emt 0:00:12]} Kc5 {[%emt 0:00:38]} 45. Qf6 {[%emt 0:00:45]} Rgc7 {[%emt 0:00:39]} 46. Qf8+ {[%emt 0:00:32]} Kb5 {[%emt 0:00:05]} 47. Ra2 {[%emt 0:00:21]} Rc1+ {[%emt 0:00:36]} 48. Kg2 {[%emt 0:00:18]} Rbc7 {[%emt 0:00:53]} 49. Qe8+ {[%emt 0:01:08]} R1c6 {[%emt 0:00:49]} 50. Rc2 {[%emt 0:00:56]} Rc8 {[%emt 0:00:50]} 51. Qd7 {[%emt 0:00:26]} R8c7 {[%emt 0:00:15]} 52. Qd5+ {[%emt 0:00:14]} Rc5 {[%emt 0:00:13]} 53. Qb3+ {[%emt 0:00:35]} Kc6 {[%emt 0:00:25]} 54. Rxc5+ {[%emt 0:00:07]} Kxc5 {[%emt 0:01:26]} 55. h4 {[%emt 0:00:13]} Kd6 {[%emt 0:00:40]} 56. h5 {[%emt 0:00:18]} Rc3 {[%emt 0:00:34]} 57. Qd1 {[%emt 0:01:00]} Ke7 {[%emt 0:00:19]} 58. h6 {[%emt 0:00:07]} Rc6 {[%emt 0:00:32]} 59. Qh5 {[%emt 0:00:47]} Rc2 {[%emt 0:00:19]} 60. Qh4+ {[%emt 0:00:35]} Kf7 {[%emt 0:00:34]} 61. Qh5+ {[%emt 0:00:19]} Kf8 {[%emt 0:00:48]} 62. Qf5+ {[%emt 0:00:58]} Kg8 {[%emt 0:00:40]} 63. Qg6+ {[%emt 0:00:12]} Kf8 {[%emt 0:00:06]} 64. Qg7+ {[%emt 0:02:28]} Ke8 {[%emt 0:00:01]} 65. Qg8+ {[%emt 0:00:46]} Ke7 {[%emt 0:01:01]} 66. Kf3 {[%emt 0:00:54]} Rxf2+ {[%emt 0:00:07]} 67. Ke4 {[%emt 0:00:07]} Re2+ {[%emt 0:01:13]} 68. Kd5 {[%emt 0:00:07]} Rh2 {[%emt 0:00:34]} 69. Qg7+ {[%emt 0:00:10]} Kd8 {[%emt 0:00:10]} 70. Kd6 {[%emt 0:00:37]} Bc5+ {[%emt 0:00:36]} 71. Kxe5 {[%emt 0:00:33]} Ke8 {[%emt 0:00:51]} 72. h7 {[%emt 0:00:58]} Bf8 {[%emt 0:00:31]} 73. Qg6+ {[%emt 0:00:33]} Kd8 {[%emt 0:00:14]} 74. Qf6+ {[%emt 0:00:17]} Ke8 {[%emt 0:00:36]} 1-0

[Event "Oceania Zonal Women 2023"]
[Site "Melbourne"]
[Date "2023.01.24"]
[Round "2.5"]
[White "Quek, Shi Ning Kristine"]
[Black "Fan, Chloe"]
[Result "0-1"]
[ECO "C54"]
[WhiteElo "1807"]
[BlackElo "1554"]
[Annotator "NA COMBH"]
[PlyCount "74"]
[EventDate "2023.01.09"]
[EventType "swiss"]
[EventCountry "AUS"]
[SourceTitle "playchess.com"]
[Source "ChessBase"]
[SourceQuality "1"]
[TimeControl "5400+30"]

1. e4 {[%emt 0:03:10]} e5 {[%emt 0:00:06]} 2. Nf3 {[%emt 0:00:24]} Nc6 {[%emt 0:00:05]} 3. Bc4 {[%emt 0:00:25]} Bc5 {[%emt 0:00:07]} 4. c3 {[%emt 0:00:26]} Nf6 {[%emt 0:00:07]} 5. d4 {[%emt 0:00:07]} exd4 {[%emt 0:00:07]} 6. cxd4 {[%emt 0:00:08]} Bb4+ {[%emt 0:00:09]} 7. Nc3 {[%emt 0:01:08]} Nxe4 {[%emt 0:00:10]} 8. O-O {[%emt 0:00:07]} Bxc3 {[%emt 0:00:07]} 9. d5 {[%emt 0:00:09]} Ne5 {[%emt 0:00:06]} 10. bxc3 {[%emt 0:00:09]} Nxc4 {[%emt 0:00:06]} 11. Qd4 {[%emt 0:00:23]} O-O {[%emt 0:02:48]} 12. Qxe4 {[%emt 0:01:33]} Nd6 {[%emt 0:00:09]} 13. Qg4 {[%emt 0:05:32]} f5 {[%emt 0:14:08]} 14. Qf4 {[%emt 0:14:50]} Ne4 {[%emt 0:06:45]} 15. Bb2 {[%emt 0:02:54]} b6 {[%emt 0:04:04]} 16. c4 {[%emt 0:10:27]} Ba6 {[%emt 0:12:01]} 17. Rac1 {[%emt 0:01:26]} Rc8 {[%emt 0:11:33]} 18. Rfd1 {[%emt 0:06:45]} Qe7 {[%emt 0:02:35]} 19. Rd3 {[%emt 0:09:59]} Qd6 {[%emt 0:07:15]} 20. Ne5 {[%emt 0:06:19]} Rce8 {[%emt 0:03:23]} 21. h4 {[%emt 0:07:35]} Rf7 {[%emt 0:18:00]} 22. Rf3 {[%emt 0:05:23]} Rff8 {[%emt 0:01:38]} 23. h5 {[%emt 0:01:13]} Qf6 {[%emt 0:02:08]} 24. Re3 {[%emt 0:04:54]} Qd6 {[%emt 0:01:13]} 25. Rh3 {[%emt 0:03:56]} Re7 {[%emt 0:01:59]} 26. f3 {[%emt 0:04:35]} Qc5+ {[%emt 0:03:32]} 27. Kh2 {[%emt 0:00:34]} Qf2 {[%emt 0:02:10]} 28. Nd3 {[%emt 0:01:18]} Qe2 {[%emt 0:02:58]} 29. fxe4 {[%emt 0:00:26]} fxe4 {[%emt 0:00:55]} 30. Qg5 {[%emt 0:01:41]} exd3 {[%emt 0:00:19]} 31. Rg3 {[%emt 0:05:04]} d2 {[%emt 0:02:29]} 32. Bxg7 {[%emt 0:01:36]} dxc1=Q {[%emt 0:00:20]} 33. Qxc1 {[%emt 0:01:49]} Rxg7 {[%emt 0:00:11]} 34. Rxg7+ {[%emt 0:00:17]} Kxg7 {[%emt 0:00:07]} 35. Qg5+ {[%emt 0:00:04]} Kh8 {[%emt 0:01:36]} 36. h6 {[%emt 0:00:50]} Qb2 {[%emt 0:00:12]} 37. Qe7 {[%emt 0:00:18]} Qf6 {[%emt 0:00:16]} 0-1